lending/lending_fUSD_20240110
["ID","MTS","AMOUNT","RATE_DAILY","PERIOD"]
[311027592,1704873086740,-607.77,0.00030958,2]
[311027593,1704873086749,-667.86,0.00030958,2]
[311027594,1704873086758,-500.0,0.00030958,2]
[311027595,1704873086767,-515.0,0.00030958,2]
[311027596,1704873086777,-500.0,0.00030958,2]
[311027597,1704873086786,-967.53,0.00030958,2]
[311027598,1704873086795,-500.0,0.00030958,2]
[311027599,1704873086805,-500.0,0.00030958,2]
[311027600,1704873086814,-530.06645842,0.00030958,2]
[311027601,1704873086823,-1566.35,0.00030958,2]
[311027602,1704873086832,-660.62,0.00030958,2]
[311027603,1704873086842,-500.0,0.00030958,2]
[311027604,1704873086852,-1709.95,0.00030958,2]
[311027605,1704873086862,-1326.24,0.00030958,2]
[311027606,1704873086873,-500.0,0.00030958,2]
[311027607,1704873086883,-1644.17,0.00030958,2]
[311027608,1704873086892,-500.0,0.00030958,2]
[311027609,1704873086902,-500.0,0.00030958,2]
[311027610,1704873086912,-500.0,0.00030958,2]
[311027611,1704873086923,-563.55,0.00030958,2]
[311027612,1704873086933,-970.8,0.00030958,2]
[311027613,1704873086943,-978.28,0.00030958,2]
[311027614,1704873086952,-500.0,0.00030958,2]
[311027615,1704873086962,-910.11,0.00030958,2]
[311027616,1704873086972,-182.79817289,0.00030958,2]
[311027617,1704873086981,-851.03,0.00030958,2]
[311027618,1704873086991,-500.0,0.00030958,2]
[311027619,1704873087001,-597.67,0.00030958,2]
[311027620,1704873087011,-500.0,0.00030958,2]
[311027621,1704873087021,-1073.72,0.00030958,2]
[311027622,1704873087031,-258.29725506,0.00030958,2]
[311027623,1704873087041,-581.84793769,0.00030958,2]
[311027624,1704873087050,-500.0,0.00030958,2]
[311027625,1704873087060,-549.95364176,0.00030958,2]
[311027626,1704873087070,-790.85,0.00030958,2]
[311027627,1704873087081,-1749.73,0.00030958,2]
[311027628,1704873087090,-1303.11,0.00030958,2]
[311027629,1704873087099,-500.0,0.00030958,2]
[311027630,1704873087108,-500.0,0.00030958,2]
[311027631,1704873087118,-648.37,0.00030958,2]
[311027632,1704873087128,-1844.47,0.00030958,2]
[311027633,1704873087138,-1066.48,0.00030958,2]
[311027634,1704873087147,-500.0,0.00030958,2]
[311027635,1704873087157,-500.0,0.00030958,2]
[311027636,1704873087167,-500.0,0.00030958,2]
[311027637,1704873087177,-908.11,0.00030958,2]
[311027638,1704873087187,-500.0,0.00030958,2]
[311027639,1704873087197,-914.77,0.00030958,2]
[311027640,1704873087207,-500.0,0.00030958,2]
[311027641,1704873087217,-500.0,0.00030958,2]
[311027642,1704873087227,-500.0,0.00030958,2]
[311027643,1704873087236,-926.31,0.00030958,2]
[311027644,1704873087245,-2029.1,0.00030958,2]
[311027645,1704873087255,-644.04,0.00030958,2]
[311027646,1704873087263,-500.0,0.00030958,2]
[311027647,1704873087273,-500.0,0.00030958,2]
[311027648,1704873087283,-500.0,0.00030958,2]
[311027649,1704873087294,-500.0,0.00030958,2]
[311027650,1704873087303,-1198.29,0.00030958,2]
[311027651,1704873087313,-1948.61,0.00030958,2]
[311027652,1704873087322,-1624.99,0.00030958,2]
[311027653,1704873087331,-994.71,0.00030958,2]
[311027654,1704873087340,-1211.39,0.00030958,2]
[311027655,1704873087349,-1786.72,0.00030958,2]
[311027656,1704873087358,-500.0,0.00030958,2]
[311027657,1704873087369,-1120.55,0.00030958,2]
[311027658,1704873087385,-500.0,0.00030958,2]
[311027659,1704873087395,-500.0,0.00030958,2]
[311027660,1704873087404,-961.57,0.00030958,2]
[311027661,1704873087413,-500.0,0.00030958,2]
[311027662,1704873087425,-500.0,0.00030958,2]
[311027663,1704873087435,-530.95,0.00030958,2]
[311027664,1704873087444,-932.64,0.00030958,2]
[311027665,1704873087456,-604.28,0.00030958,2]
[311027666,1704873087466,-871.32,0.00030958,2]
[311027667,1704873087475,-834.43,0.00030958,2]
[311027668,1704873087484,-588.04,0.00030958,2]
[311027669,1704873087495,-582.56,0.00030958,2]
[311027670,1704873087505,-500.0,0.00030958,2]
[311027671,1704873087515,-926.79,0.00030958,2]
[311027672,1704873087524,-910.03,0.00030958,2]
[311027673,1704873087533,-1433.8,0.00030958,2]
[311027674,1704873087543,-500.0,0.00030958,2]
[311027675,1704873087553,-522.78,0.00030958,2]
[311027676,1704873087564,-1734.45,0.00030958,2]
[311027677,1704873087574,-1753.3,0.00030958,2]
[311027678,1704873087583,-500.0,0.00030958,2]
[311027679,1704873087595,-2732.98,0.00030958,2]
[311027680,1704873087605,-1244.1,0.00030958,2]
[311027681,1704873087615,-500.0,0.00030958,2]
[311027682,1704873087625,-500.0,0.00030958,2]
[311027683,1704873087635,-1350.89,0.00030958,2]
[311027684,1704873087645,-781.62,0.00030958,2]
[311027685,1704873087654,-500.0,0.00030958,2]
[311027686,1704873087665,-567.47889668,0.00030958,2]
[311027687,1704873087675,-500.0,0.00030958,2]
[311027688,1704873087684,-500.0,0.00030958,2]
[311027689,1704873087694,-500.0,0.00030958,2]
[311027690,1704873087705,-1911.43,0.00030958,2]
[311027691,1704873087716,-500.0,0.00030958,2]
[311027692,1704873087726,-500.0,0.00030958,2]
[311027693,1704873087735,-500.0,0.00030958,2]
[311027694,1704873087745,-986.22,0.00030958,2]
[311027695,1704873087754,-1008.93,0.00030958,2]
[311027696,1704873087763,-500.0,0.00030958,2]
[311027697,1704873087772,-981.17,0.00030958,2]
[311027698,1704873087781,-548.72,0.00030958,2]
[311027699,1704873087791,-2028.87,0.00030958,2]
[311027700,1704873087801,-1869.36,0.00030958,2]
[311027701,1704873087811,-500.0,0.00030958,2]
[311027702,1704873087822,-500.0,0.00030958,2]
[311027703,1704873087832,-1000.0,0.00030958,2]
[311027704,1704873087843,-941.34,0.00030958,2]
[311027705,1704873087853,-497.50579953,0.00030958,2]
[311027706,1704873087864,-500.0,0.00030958,2]
[311027707,1704873087875,-544.41,0.00030958,2]
[311027708,1704873087887,-604.74,0.00030958,2]
[311027709,1704873087899,-712.53,0.00030958,2]
[311027710,1704873087909,-1854.53,0.00030958,2]
[311027711,1704873087919,-1296.4,0.00030958,2]
[311027712,1704873087929,-1825.36,0.00030958,2]
[311027713,1704873087939,-500.0,0.00030958,2]
[311027714,1704873087949,-500.0,0.00030958,2]
[311027715,1704873087958,-1827.61,0.00030958,2]
[311027716,1704873087968,-500.0,0.00030958,2]
[311027717,1704873087978,-500.0,0.00030958,2]
[311027718,1704873087988,-500.0,0.00030958,2]
[311027719,1704873087998,-500.0,0.00030958,2]
[311027720,1704873088009,-6317.07,0.00030958,2]
[311027721,1704873088018,-500.0,0.00030958,2]
[311027722,1704873088028,-3482.43,0.00030958,2]
[311027723,1704873088039,-887.83,0.00030958,2]
[311027724,1704873088049,-748.33,0.00030958,2]
[311027725,1704873088060,-344.10384074,0.00030958,2]
[311027726,1704873088069,-2243.87,0.00030958,2]
[311027727,1704873088079,-500.0,0.00030958,2]
[311027728,1704873088089,-500.0,0.00030958,2]
[311027729,1704873088099,-917.72,0.00030958,2]
[311027730,1704873088109,-978.66,0.00030958,2]
[311027731,1704873088119,-3084.44,0.00030958,2]
[311027732,1704873088130,-516.19,0.00030958,2]
[311027733,1704873088139,-697.66,0.00030958,2]
[311027734,1704873088149,-500.0,0.00030958,2]
[311027735,1704873088159,-824.75,0.00030958,2]
[311027736,1704873088169,-1741.49,0.00030958,2]
[311027737,1704873088179,-888.71,0.00030958,2]
[311027738,1704873088189,-500.0,0.00030958,2]
[311027739,1704873088200,-7672.01,0.00030958,2]
[311027740,1704873088210,-1355.0,0.00030958,2]
[311027741,1704873088220,-500.0,0.00030958,2]
[311027742,1704873088229,-2112.05,0.00030958,2]
[311027743,1704873088238,-1695.18,0.00030958,2]
[311027744,1704873088248,-3531.47,0.00030958,2]
[311027745,1704873088258,-500.0,0.00030958,2]
[311027746,1704873088268,-553.51,0.00030958,2]
[311027747,1704873088279,-500.0,0.00030958,2]
[311027748,1704873088289,-256.21,0.00030958,2]
[311027749,1704873088298,-500.0,0.00030958,2]
[311027750,1704873088307,-500.0,0.00030958,2]
[311027751,1704873088317,-1336.94,0.00030958,2]
[311027752,1704873088326,-500.0,0.00030958,2]
[311027753,1704873088335,-500.0,0.00030958,2]
[311027754,1704873088345,-3549.65,0.00030958,2]
[311027755,1704873088354,-1247.22,0.00030958,2]
[311027756,1704873088364,-500.0,0.00030958,2]
[311027757,1704873088374,-500.0,0.00030958,2]
[311027758,1704873088383,-1000.0,0.00030958,2]
[311027759,1704873088393,-1117.25,0.00030958,2]
[311027760,1704873088402,-11859.61,0.00030958,2]
[311027761,1704873088412,-500.0,0.00030958,2]
[311027762,1704873088422,-500.0,0.00030958,2]
[311027763,1704873088432,-500.0,0.00030958,2]
[311027764,1704873088441,-1464.03,0.00030958,2]
[311027765,1704873088450,-552.85,0.00030958,2]
[311027766,1704873088459,-1934.59,0.00030958,2]
[311027767,1704873088468,-500.0,0.00030958,2]
[311027768,1704873088477,-500.0,0.00030958,2]
[311027769,1704873088487,-688.03,0.00030958,2]
[311027770,1704873088496,-500.0,0.00030958,2]
[311027771,1704873088505,-500.0,0.00030958,2]
[311027772,1704873088515,-4116.79,0.00030958,2]
[311027773,1704873088524,-1444.73,0.00030958,2]
[311027774,1704873088533,-7522.08,0.00030958,2]
[311027775,1704873088542,-500.0,0.00030958,2]
[311027776,1704873088552,-705.27,0.00030958,2]
[311027777,1704873088561,-500.0,0.00030958,2]
[311027778,1704873088570,-500.0,0.00030958,2]
[311027779,1704873088579,-200744.8678873,0.00030958,2]
[311027780,1704873088588,-3828.68825224,0.00030958,2]
[311027781,1704873089588,-211.32174776,0.00030958,2]
[311027782,1704873089599,-500.0,0.00030958,2]
[311027783,1704873089615,-1658.85247887,0.00030958,2]
[311027784,1704873090310,-2345.16,0.00030136,2]
[311027785,1704873090321,-132.10970277,0.00030136,2]
[311027786,1704873091131,-362.42774075,0.00030136,2]
[311027787,1704873091778,-2233.32255648,0.00030136,2]
[311027788,1704873091788,-1214.81,0.00030136,2]
[311027789,1704873091798,-4154.19,0.00030136,2]
[311027790,1704873091809,-500.0,0.0003041,2]
[311027791,1704873091819,-800.66,0.0003041,2]
[311027792,1704873091829,-1591.34744321,0.0003041,2]
[311027793,1704873096097,-0.71829055,0.00029427,2]
[311027794,1704873096211,-2554.9731492,0.00029427,2]
[311027795,1704873096241,-1168.91694439,0.00029427,2]
[311027796,1704873096253,-9252.930399,0.00029427,2]
[311027797,1704873096279,-4548.85121686,0.00029427,2]
[311027798,1704873096291,-661.34,0.00030136,2]
[311027799,1704873096301,-502.32991649,0.00030136,2]
[311027800,1704873096311,-308.97886665,0.0003041,2]
[311027801,1704873096324,-444.83369014,0.0003041,2]
[311027802,1704873096335,-2727.86,0.0003041,2]
[311027803,1704873096346,-943.10630986,0.0003041,2]
[311027804,1704873107525,175.92052262,0.00037157,30]
[311027805,1704873117624,3121.7146224,0.00021848,2]
[311027806,1704873134450,1708.53382454,0.00021847,2]
[311027807,1704873149028,2900.0,0.000225,15]
[311027810,1704873257723,724.90844336,0.00037157,120]
[311027811,1704873292661,151.4011,0.00022251,2]
[311027812,1704873294638,151.4011,0.00022251,2]
[311027813,1704873295384,151.4011,0.00022251,2]
[311027814,1704873296137,151.4011,0.00022251,2]
[311027815,1704873296987,151.4011,0.00022251,2]
[311027816,1704873297787,151.4011,0.00022251,2]
[311027817,1704873298558,151.4011,0.00022251,2]
[311027818,1704873299385,151.4011,0.00022251,2]
[311027819,1704873300162,151.4011,0.00022251,2]
[311027820,1704873300912,151.4011,0.00022251,2]
[311027821,1704873301640,151.4011,0.00022251,2]
[311027822,1704873302926,151.4011,0.00022251,2]
[311027823,1704873303130,151.4011,0.00022251,2]
[311027824,1704873303949,151.4011,0.00022251,2]
[311027825,1704873304761,151.4011,0.00022251,2]
[311027826,1704873306320,151.4011,0.00022251,2]
[311027827,1704873306502,151.4011,0.00022251,2]
[311027828,1704873307239,151.4011,0.00022251,2]
[311027829,1704873308049,151.4011,0.00022251,2]
[311027830,1704873308837,151.4011,0.00022251,2]
[311027831,1704873309020,336.81114398,0.00037175,30]
[311027832,1704873309663,151.4011,0.00022251,2]
[311027833,1704873310467,151.4011,0.00022251,2]
[311027834,1704873311328,151.4011,0.00022251,2]
[311027835,1704873312130,151.4011,0.00022251,2]
[311027836,1704873313356,151.4011,0.00022251,2]
[311027837,1704873313746,151.4011,0.00022251,2]
[311027838,1704873314606,151.4011,0.00022251,2]
[311027839,1704873315465,151.4011,0.00022251,2]
[311027840,1704873316240,151.4011,0.00022251,2]
[311027841,1704873317147,151.4011,0.00022251,2]
[311027842,1704873318029,151.4011,0.00022251,2]
[311027843,1704873318809,151.4011,0.00022251,2]
[311027844,1704873319587,151.4011,0.00022251,2]
[311027845,1704873320440,151.4011,0.00022251,2]
[311027846,1704873321254,151.4011,0.00022251,2]
[311027847,1704873322064,151.4011,0.00022251,2]
[311027848,1704873322869,151.4011,0.00022251,2]
[311027849,1704873324484,151.4011,0.00022251,2]
[311027850,1704873324588,151.4011,0.00022251,2]
[311027851,1704873325803,151.4011,0.00022251,2]
[311027852,1704873326621,151.4011,0.00022251,2]
[311027853,1704873327420,151.4011,0.00022251,2]
[311027854,1704873328200,151.4011,0.00022251,2]
[311027855,1704873329014,151.4011,0.00022251,2]
[311027856,1704873330131,151.4011,0.00022251,2]
[311027857,1704873330591,151.4011,0.00022251,2]
[311027858,1704873332161,151.4011,0.00022251,2]
[311027859,1704873332985,151.4011,0.00022251,2]
[311027860,1704873333804,151.4011,0.00022251,2]
[311027861,1704873334616,151.4011,0.00022251,2]
[311027862,1704873334687,151.4011,0.00022251,2]
[311027863,1704873335373,151.4011,0.00022251,2]
[311027864,1704873336138,151.4011,0.00022251,2]
[311027865,1704873336886,151.4011,0.00022251,2]
[311027866,1704873337641,151.4011,0.00022251,2]
[311027867,1704873338349,151.4011,0.00022251,2]
[311027868,1704873339125,151.4011,0.00022251,2]
[311027869,1704873339906,151.4011,0.00022251,2]
[311027870,1704873340706,151.4011,0.00022251,2]
[311027871,1704873341458,151.4011,0.00022251,2]
[311027872,1704873342920,151.4011,0.00022251,2]
[311027873,1704873343664,151.4011,0.00022251,2]
[311027874,1704873344379,151.4011,0.00022251,2]
[311027875,1704873345375,151.4011,0.00022251,2]
[311027876,1704873345959,151.4011,0.00022251,2]
[311027877,1704873346692,151.4011,0.00022251,2]
[311027878,1704873346865,151.4011,0.00022251,2]
[311027879,1704873347478,151.4011,0.00022251,2]
[311027880,1704873348416,151.4011,0.00022251,2]
[311027881,1704873349024,151.4011,0.00022251,2]
[311027882,1704873349793,151.4011,0.00022251,2]
[311027883,1704873350557,151.4011,0.00022251,2]
[311027884,1704873351311,151.4011,0.00022251,2]
[311027885,1704873352072,151.4011,0.00022251,2]
[311027886,1704873352853,151.4011,0.00022251,2]
[311027887,1704873353606,151.4011,0.00022251,2]
[311027888,1704873354411,151.4011,0.00022251,2]
[311027889,1704873356212,151.4011,0.00022251,2]
[311027890,1704873356528,151.4011,0.00022251,2]
[311027891,1704873356778,151.4011,0.00022251,2]
[311027892,1704873357529,151.4011,0.00022251,2]
[311027893,1704873358262,151.4011,0.00022251,2]
[311027894,1704873359070,151.4011,0.00022251,2]
[311027895,1704873359776,151.4011,0.00022251,2]
[311027896,1704873364615,151.4011,0.00022251,2]
[311027897,1704873367376,151.4011,0.00022251,2]
[311027898,1704873374260,151.4011,0.00022251,2]
[311027899,1704873546795,216.74240641,0.000229,6]
[311027900,1704873551794,216.74240639,0.00024932,9]
[311027901,1704873580013,-150.0,0.00022768,2]
[311027902,1704873580044,-328.00384598,0.00022768,2]
[311027903,1704873580076,-580.93784065,0.00022769,2]
[311027904,1704873580108,-2464.15385282,0.00022769,2]
[311027905,1704873580188,-150.0,0.00022897,2]
[311027906,1704873580207,-328.00384598,0.00022897,2]
[311027907,1704873580220,-580.93784065,0.00022897,2]
[311027908,1704873580240,-2464.15385282,0.00022897,2]
[311027909,1704873580255,-2953.8089211,0.00022897,2]
[311027910,1704873689782,1932.752725,0.00037148,30]
[311027911,1704873717527,500.0,0.000225,8]
[311027912,1704873719606,1100.0,0.000226,8]
[311027913,1704873721690,1700.0,0.000227,8]
[311027914,1704873723777,2300.0,0.000228,8]
[311027915,1704873725864,2900.0,0.000229,8]
[311027916,1704873766881,535.90805296,0.00022898,7]
[311027917,1704873782683,544.55864535,0.00022898,7]
[311027918,1704873790722,271.42447947,0.00022898,15]
[311027919,1704873802674,544.55864535,0.00022898,7]
[311027920,1704873810893,271.42447947,0.00022898,15]
[311027921,1704873822700,544.55864535,0.00022898,7]
[311027922,1704873830721,271.42447947,0.00022898,15]
[311027923,1704873840743,544.55864535,0.00022898,7]
[311027924,1704873846720,271.42447947,0.00022898,15]
[311027925,1704873856727,429.72724012,0.00022898,7]
[311027926,1704873859269,-33707.0,0.0002277,2]
[311027927,1704873866730,179.0777932,0.00022898,15]
[311027928,1704873934754,284.62354703,0.00037148,60]
[311027929,1704874012247,176.01,0.00022,2]
[311027930,1704874074711,9572.4,0.00037148,30]
[311027931,1704874187299,4975.040143,0.00037148,30]
[311027948,1704874231674,-252.04447886,0.00022548,2]
[311027949,1704874231684,-176.01,0.00022548,2]
[311027950,1704874231694,-898.85124452,0.00022799,2]
[311027951,1704874231706,-1097.82321701,0.00022799,2]
[311027952,1704874231740,-384.3878097,0.00022799,2]
[311027953,1704874231811,-582.30602877,0.00022799,2]
[311027954,1704874231821,-107.48928506,0.00022897,2]
[311027955,1704874231833,-1476.55379562,0.00022897,2]
[311027956,1704874231845,-469.41846334,0.00022897,2]
[311027957,1704874231854,-310.43810142,0.00022898,2]
[311027958,1704874231864,-122.54060806,0.00022899,2]
[311027959,1704874231876,-1711.99249184,0.00022899,2]
[311027960,1704874231892,-254.97541329,0.00022899,2]
[311027961,1704874231979,-861.71267396,0.00022899,2]
[311028047,1704874237661,-671.00303734,0.00022899,2]
[311028111,1704874238651,-1285.22235789,0.00022899,2]
[311028114,1704874238663,-951.26132272,0.00022899,2]
[311028121,1704874238721,-738.31149893,0.00022899,2]
[311028125,1704874238745,-823.55210482,0.00022899,2]
[311028128,1704874238768,-489.13966662,0.00022899,2]
[311028136,1704874238832,-679.78520635,0.00022899,2]
[311028139,1704874238843,-404.21930897,0.00022899,2]
[311028150,1704874238934,-826.37840878,0.00022899,2]
[311028152,1704874238949,-550.09819331,0.00022899,2]
[311028154,1704874238960,-1648.54731798,0.00022899,2]
[311028157,1704874238976,-762.63364732,0.00022899,2]
[311028159,1704874238987,-260.69280331,0.00022899,2]
[311028286,1704874240099,-681.32805981,0.00022899,2]
[311028288,1704874240111,-991.94342413,0.00022899,2]
[311028294,1704874240156,-253.93433796,0.00022899,2]
[311028307,1704874240267,-6649.56703384,0.00022899,2]
[311028310,1704874240279,-769.16861885,0.00022899,2]
[311028316,1704874240325,-800.77597216,0.00022899,2]
[311028617,1704874243258,-847.90154913,0.00022899,2]
[311028620,1704874243286,-692.36160147,0.00022899,2]
[311028625,1704874243322,-393.14444574,0.00022899,2]
[311028628,1704874243339,-3470.59545206,0.00022899,2]
[311028631,1704874243356,-3769.65895426,0.00022899,2]
[311028639,1704874243422,-640.26313134,0.00022899,2]
[311028641,1704874243438,-635.17344444,0.00022899,2]
[311028647,1704874243481,-1694.00533973,0.00022899,2]
[311028650,1704874243501,-3214.34888551,0.00022899,2]
[311028653,1704874243519,-952.17902262,0.00022899,2]
[311028656,1704874243535,-1014.7288753,0.00022899,2]
[311028658,1704874243552,-826.2613485,0.00022899,2]
[311028887,1704874245757,-830.41877215,0.00022899,2]
[311028888,1704874245814,-542.23804781,0.00022899,2]
[311028889,1704874245829,-1010.74106396,0.00022899,2]
[311028893,1704874245870,-252.6986614,0.00022899,2]
[311028900,1704874245931,-826.05719028,0.00022899,2]
[311028903,1704874245946,-781.12237205,0.00022899,2]
[311028916,1704874246057,-1379.66158913,0.00022899,2]
[311028919,1704874246076,-1983.06589072,0.00022899,2]
[311028922,1704874246095,-1459.76136065,0.00022899,2]
[311028924,1704874246112,-1218.68700044,0.00022899,2]
[311028926,1704874246130,-1139.50000001,0.00022899,2]
[311028931,1704874246165,-1228.65067625,0.00022899,2]
[311028986,1704874246679,2248.00674586,0.00022077,2]
[311029115,1704874250212,155.57286791,0.00020697,2]
[311029116,1704874251634,18806.45,0.00037148,30]
[311029117,1704874274641,3212.36902665,0.00021847,2]
[311029118,1704874278954,2478.02623943,0.00022307,2]
[311029119,1704874308212,199.62527053,0.00022996,6]
[311029120,1704874313374,199.6252705,0.00024962,9]
[311029123,1704874511029,1288.9208288,0.00037147,30]
[311029124,1704874512107,216.39,0.00023355,10]
[311029126,1704874591788,1932.752725,0.00037147,30]
[311029127,1704874627113,176.01,0.00022,2]
[311029128,1704874725909,384.14,0.0002106,2]
[311029129,1704874922899,756.85744404,0.000225,2]
[311029131,1704874936230,216.39,0.00022615,10]
[311029135,1704875157240,208.05,0.00022337,2]
[311029136,1704875173851,150.0,0.00022262,2]
[311029137,1704875201871,364.93,0.00020311,2]
[311029138,1704875236406,253.74921038,0.00022151,15]
[311029139,1704875246666,176.75885641,0.00021999,2]
[311029140,1704875343978,366.94311366,0.0003,120]
[311029141,1704875375960,161.68,0.00022474,2]
[311029142,1704875382219,306.5,0.0002236,2]
[311029147,1704875406528,-300.0,0.00022998,3]
[311029148,1704875410762,5991.87,0.000223,2]
[311029149,1704875423551,387.41,0.00022435,2]
[311029158,1704875431934,-155.0,0.00022573,2]
[311029159,1704875431943,-377.81530328,0.00022574,2]
[311029160,1704875431955,-1609.29824555,0.00022574,2]
[311029161,1704875431967,-66.34799519,0.00022574,2]
[311029162,1704875431976,-364.93,0.00022575,2]
[311029163,1704875431986,-78.07343702,0.00022599,2]
[311029164,1704875432064,-403.24036298,0.00022599,2]
[311029165,1704875432073,-150.0,0.00022698,2]
[311029166,1704875432083,-362.04,0.00022699,2]
[311029167,1704875432093,-519.62861407,0.00022699,2]
[311029168,1704875432499,-278.9188863,0.00022699,2]
[311029169,1704875432513,-1130.00750793,0.00022699,2]
[311029175,1704875432629,-4617.29211843,0.00022699,2]
[311029204,1704875437810,-45689.89397327,0.00022699,2]
[311029205,1704875437821,-4990.0967,0.00022699,2]
[311029206,1704875437831,-17944.4417,0.00022699,2]
[311029207,1704875437841,-221.03,0.00022707,2]
[311029208,1704875437851,-2166.93,0.00022707,2]
[311029209,1704875437861,-499.99,0.00022707,2]
[311029210,1704875437872,-150.99781433,0.00022736,2]
[311029211,1704875437882,-7774.32,0.00022736,2]
[311029212,1704875437891,-179.99129707,0.00022793,2]
[311029213,1704875437901,-736.92153866,0.00022798,2]
[311029214,1704875437911,-161.14,0.0002287,2]
[311029215,1704875437921,-271412.5441,0.00022893,2]
[311029216,1704875437930,-250.7665,0.00022893,2]
[311029217,1704875437940,-85248.8629,0.00022899,2]
[311029218,1704875437950,-1767.51233618,0.000229,2]
[311029219,1704875437960,-287.69134057,0.000229,2]
[311029220,1704875437970,-439.68674674,0.000229,2]
[311029221,1704875437980,-5751.29373802,0.000229,2]
[311029222,1704875437989,-1125.9550647,0.000229,2]
[311029223,1704875437999,-187.73776883,0.000229,2]
[311029224,1704875438009,-3229.11500286,0.00022997,2]
[311029225,1704875438018,-155.10772643,0.00022997,2]
[311029226,1704875438028,-336.92043028,0.00022997,2]
[311029227,1704875438038,-723.52585239,0.00022997,2]
[311029228,1704875438048,-3937.41330267,0.00022997,2]
[311029229,1704875438059,-264.94143778,0.00022997,2]
[311029230,1704875438069,-30497.7386142,0.00022998,3]
[311029231,1704875438079,-39857.46850655,0.00022999,2]
[311029232,1704875438089,-108939.46632345,0.00022999,2]
[311029233,1704875438098,-1000.0,0.00022999,2]
[311029234,1704875438108,-1000.0,0.00022999,2]
[311029235,1704875438118,-1000.0,0.00022999,2]
[311029236,1704875438128,-674.86044919,0.00022999,2]
[311029237,1704875438137,-135857.25303743,0.00023,2]
[311029238,1704875438166,-323.52585239,0.00023,2]
[311029239,1704875438178,-546.72999999,0.00023,2]
[311029240,1704875438210,-3894.41191109,0.00023,2]
[311029241,1704875438239,-400.0,0.00023,2]
[311029242,1704875438276,-151929.77162713,0.00023,2]
[311029247,1704875438328,-3613.84489398,0.00023,2]
[311029308,1704875438839,-4666.52245851,0.00023,2]
[311029313,1704875438871,-250.0,0.00023,2]
[311029355,1704875440425,-2565.4531453,0.00023,2]
[311029356,1704875440436,-1346.76643358,0.00023,2]
[311029357,1704875440461,-1789.99622207,0.00023,2]
[311029358,1704875440496,-2260.5,0.00023,2]
[311029359,1704875440508,-3103.72225,0.00023,2]
[311029360,1704875440520,-299.64868434,0.00023,2]
[311029361,1704875440531,-8121.77902634,0.00023,2]
[311029362,1704875440556,-9161.4,0.00023,2]
[311029363,1704875440568,-424.82213099,0.00023,2]
[311029364,1704875440662,-530.49522108,0.00023,2]
[311029365,1704875440674,-295.70000001,0.00023,2]
[311029366,1704875441131,-166104.30706321,0.00023,2]
[311029372,1704875442906,-561.1475396,0.00023,2]
[311029373,1704875442927,-23482.07583958,0.00023,2]
[311029374,1704875442971,-7034.42364167,0.00023,2]
[311029375,1704875443034,-10071.60396504,0.00023,2]
[311029376,1704875443046,-2177.14923543,0.00023,2]
[311029377,1704875443057,-10554.58080006,0.00023,2]
[311029378,1704875443070,-717.584718,0.00023,2]
[311029379,1704875443082,-117184.56892764,0.00023,2]
[311029380,1704875443101,-3510.059181,0.00023,2]
[311029381,1704875443112,-296.71386855,0.00023,2]
[311029382,1704875443123,-2647.8662707,0.00023,2]
[311029383,1704875443167,-2979.87841503,0.00023,2]
[311029384,1704875443179,-1245.28478886,0.00023,2]